{"text_format":"1","workbook":"xlsx","n_sheets":53,"sheets":["Cover Sheet","Index","Notes and Guidance","Chart 1","Chart 2","Chart 3","Chart 4","Chart 5","Chart 6","Chart 7","Chart 8","Chart 9","Chart 10","Chart 11","Chart 12","Chart 13","Chart 14","Chart 15","Chart 16","Chart 17","Chart 18","Chart 19","Chart 20","Chart 21","Chart 22","Chart 23","Chart 24","Chart 25","Chart 26","Chart 27","Chart 28","Chart 29","Chart 30","Chart 31","Chart 32","Chart 33","Chart 34","Chart 35","T1","T2","T3","T6","T7","T8","T9","T10","T11","T12","T13","T14","T15","T16","T17"],"not_rendered":{"charts":36,"images":19,"macros":1,"external_links":2,"defined_names":97,"comments":0,"pivot_tables":0},"unopened":[{"sheet":"T1","index":38,"reason":"part_missing"},{"sheet":"T2","index":39,"reason":"part_missing"},{"sheet":"T3","index":40,"reason":"part_missing"},{"sheet":"T6","index":41,"reason":"part_missing"},{"sheet":"T7","index":42,"reason":"part_missing"},{"sheet":"T8","index":43,"reason":"part_missing"},{"sheet":"T9","index":44,"reason":"part_missing"},{"sheet":"T10","index":45,"reason":"part_missing"},{"sheet":"T11","index":46,"reason":"part_missing"},{"sheet":"T12","index":47,"reason":"part_missing"},{"sheet":"T13","index":48,"reason":"part_missing"},{"sheet":"T14","index":49,"reason":"part_missing"},{"sheet":"T15","index":50,"reason":"part_missing"},{"sheet":"T16","index":51,"reason":"part_missing"},{"sheet":"T17","index":52,"reason":"part_missing"}],"bounds":{"document_bytes":16777216,"sheet_cells":100000,"rows_first":2000,"rows_last":500,"rows_between":2000,"halvings":0,"cell_chars":16384,"cell_head_chars":4096},"cells_cut":0,"cells_raw":0,"read":"whole","date_system":"1900"}

{"sheet":"Cover Sheet","index":0,"n_rows":23,"n_cols":8,"rows_kept":23,"cut":false,"hidden":false,"merged":[[19,0,19,14],[18,0,18,14],[20,0,20,14]]}
[]
[]
[]
[]
[]
[]
[]
[]
[]
[]
[]
[]
[]
[]
[]
[]
[]
[]
["Scotland's Labour Market: People Places and Regions"]
["Annual Population Survey 2019"]
["Publication Charts"]
[]
[null,null,null,null,null,null,null,"Go to index page"]

{"sheet":"Index","index":1,"n_rows":65,"n_cols":2,"rows_kept":65,"cut":false,"hidden":false,"merged":[[0,0,0,6],[1,0,1,6],[2,0,2,6],[4,0,4,6],[17,1,17,3],[10,0,10,2],[23,1,23,3],[24,1,24,3],[25,1,25,3],[26,1,26,3],[11,0,11,2],[18,1,18,3],[19,1,19,3],[20,1,20,3],[21,1,21,3],[22,1,22,3],[30,1,30,3],[31,1,31,3],[32,1,32,3],[33,1,33,3],[34,1,34,3],[44,1,44,3],[45,1,45,3],[46,1,46,3],[35,1,35,3],[36,1,36,3],[37,1,37,3],[38,1,38,3],[40,1,40,3],[39,1,39,3],[51,1,51,3],[50,1,50,3],[64,1,64,3],[63,1,63,3],[62,1,62,3],[61,1,61,3],[60,1,60,3],[56,1,56,3],[55,1,55,3],[54,1,54,3],[53,1,53,3],[52,1,52,3]]}
["Scotland's Labour Market: People Places and Regions\nAnnual Population Survey 2019"]
["Publication Charts"]
["Scottish Government: Office of the Chief Economic Adviser: Labour Market Statistics"]
[]
["The tables in this document summarise the employment, unemployment and inactivity levels and rates for Scotland and Scottish Local Authorities."]
[]
["To access charts and data select the chart heading or the relevent tab"]
["To return to the contents page click on the \"Return to index\" link at the top of the page"]
["Go to the main publication"]
[]
["Cover page"]
["Notes and guidance"]
[]
["List of Charts"]
[]
["Section 1 - Employment"]
[]
[null,{"$f":"'Chart 1'!B3","v":"Chart 1: Employment level for ages 16 and over, Scotland, 2004 to 2019;\nand employment rate for ages 16 to 64, Scotland and UK, 2004 to 2019"}]
[null,{"$f":"'Chart 2'!B3","v":"Chart 2: Employment rate for ages 16 to 64 by gender, 2004 to 2019"}]
[null,{"$f":"'Chart 3'!B3","v":"Chart 3: Gender Employment gap by local authority, 2019"}]
[null,{"$f":"'Chart 4'!B3","v":"Chart 4: Employment rate for ages 16 to 64 by age, 2004 to 2019"}]
[null,{"$f":"'Chart 5'!B3","v":"Chart 5: Participation in full-time education by economic activity for ages 16 to 64, Scotland, 2008 to 2019"}]
[null,{"$f":"'Chart 6'!B3","v":"Chart 6: Proportion of workforce 16 to 24 years within industry, 2019"}]
[null,{"$f":"'Chart 7'!B3","v":"Chart 7: Proportion of workforce aged 50 and over within industry, 2019"}]
[null,{"$f":"'Chart 8'!B3:J3","v":"Chart 8: Disability employment gap for ages 16 to 64 by gender and age, Scotland, 2019"}]
[null,{"$f":"'Chart 9'!B3:I3","v":"Chart 9: Proportion of workforce with a long-term condition by industry, 2019"}]
[null,{"$f":"'Chart 10'!B3:J3","v":"Chart 10: Employment rate for minority ethnic and white population ages 16 to 64, Scotland, 2004 to 2019"}]
[]
["Section 2 - Type of Work"]
[]
[null,{"$f":"'Chart 11'!B3","v":"Chart 11: Employment rate for ages 16 to 64 by gender and full-time/part-time, 2019"}]
[null,{"$f":"'Chart 12'!B3:K3","v":"Chart 12: Share of employees (18 years and over) which is secure by age and gender  2019"}]
[null,{"$f":"'Chart 13'!B3","v":"Chart 13: Proportion of people aged 16 and over in employment who are self-employed by gender, 2004 to 2019"}]
[null,{"$f":"'Chart 14'!B3","v":"Chart 14: Employment for ages 16 and over by gender and work pattern, 2019"}]
[null,{"$f":"'Chart 15'!B3","v":"Chart 15: Underemployment rate for ages 16 and over by age, 2004 to 2019"}]
[null,{"$f":"'Chart 16'!B3","v":"Chart 16: Change in the number of people employed and aged 16 and over since 2009 by industry and gender, Scotland"}]
[null,{"$f":"'Chart 17'!B3","v":"Chart 17: Cumulative increase in occupation skils level of employment for ages 16 and over, Scotland, 2004 to 2019"}]
[null,{"$f":"'Chart 18'!B3","v":"Chart 18: Proportion of low and medium-low skilled jobs by industry, 2019"}]
[null,{"$f":"'Chart 19'!B3","v":"Chart 19a: Proportion of sector employment aged 16 and over by Gender, Scotland, 2019"}]
[null,{"$f":"'Chart 19'!I3","v":"Chart 19b: Proportion of occupation employment aged 16 and over by Gender and occupation, Scotland, 2019"}]
[null,{"$f":"'Chart 20'!B3:N3","v":"Chart 20: Proportion of employees aged 16 to 64 who received job related training in the last 3 months, Scotland, 2004 to 2019"}]
[]
["Section 3 - Skills"]
[]
[null,{"$f":"'Chart 21'!B3","v":"Chart 21: Proportion of population aged 16 to 64 with low or no qualifications, Scotland, 2004 to 2019"}]
[null,{"$f":"'Chart 22'!B3","v":"Chart 22: Proportion of workers aged 25 to 64 who are graduates, Scotland, 2004 to 2019"}]
[null,{"$f":"'Chart 23'!B3","v":"Chart 23: Proportion of workers aged 16 to 64 by level of qualification held, Scotland, 2004 to 2019"}]
[]
["Section 4 - Unemployment"]
[]
[null,{"$f":"'Chart 24'!B3","v":"Chart 24: Unemployment Rate for ages 16 and over, Scotland and UK, 2004 to 2019"}]
[null,{"$f":"'Chart 25'!B3","v":"Chart 25: Unemployment Rate for ages 16 and over by Gender, Scotland, 2004 to 2019"}]
[null,{"$f":"'Chart 26'!B3","v":"Chart 26: Unemployment Level for ages 16 and over by Age, Scotland, 2004 to 2019"}]
[null,{"$f":"'Chart 27'!B3","v":"Chart 27: Proportion of 16 to 19 year olds who are not in employment, education or training by gender, Scotland, 2004 to 2019"}]
[null,{"$f":"'Chart 28'!B3","v":"Chart 28: Proportion of people aged 16 and over who are unemployed by duration of unemployment, Scotland, 2004 to 2019"}]
[null,{"$f":"'Chart 29'!B3","v":"Chart 29: Economic Inactivity Rate for ages 16 to 64, Scotland and UK, 2004 to 2019"}]
[null,{"$f":"'Chart 30'!B3","v":"Chart 30: Economic Inactivity Rate for ages 16 to 64 by Gender, Scotland, 2004 to 2019"}]
[]
["Section 5 - Inactivity"]
[]
[null,{"$f":"'Chart 31'!B3","v":"Chart 31: Economic Inactivity Rate for ages 16 to 64 by age, Scotland, 2004 to 2019"}]
[null,{"$f":"'Chart 32'!B3","v":"Chart 32: Change in reasons for Inactivity, Scotland, 2009 to 2019"}]
[null,{"$f":"'Chart 33'!B3","v":"Chart 33: Composition of those aged 16 to 64 who were economically inactive, Scotland, 2019"}]
[null,{"$f":"'Chart 34'!B3","v":"Chart 34: Proportion of economically inactive people aged 16 to 64 who would like a job by gender, Scotland, 2004 to 2019"}]
[null,{"$f":"'Chart 35'!B3","v":"Chart 35: Number of people who have never worked aged 16 and over, Scotland, 2004 to 2019"}]

{"sheet":"Notes and Guidance","index":2,"n_rows":60,"n_cols":1,"rows_kept":60,"cut":false,"hidden":false,"merged":[[0,0,0,1],[52,0,52,8],[54,0,54,8],[55,0,55,8],[46,0,46,8],[45,0,45,8],[49,0,49,8],[48,0,48,8],[51,0,51,8],[23,0,23,8],[24,0,24,8],[25,0,25,8],[26,0,26,8],[29,0,29,8],[27,0,27,8],[16,0,16,8],[17,0,17,8],[18,0,18,8],[21,0,21,8],[22,0,22,8],[20,0,20,8],[1,0,1,8],[2,0,2,8],[4,0,4,8],[10,0,10,8],[15,0,15,8],[13,0,13,8],[14,0,14,8],[6,0,6,8],[12,0,12,8],[8,0,8,8],[11,0,11,8],[9,0,9,8],[7,0,7,8],[5,0,5,8],[3,0,3,8],[28,0,28,8],[32,0,32,8],[36,0,36,8],[42,0,42,8],[37,0,37,8],[38,0,38,8],[39,0,39,8],[30,0,30,8],[31,0,31,8],[33,0,33,8],[34,0,34,8],[35,0,35,8],[56,0,56,8],[53,0,53,8],[40,0,40,8],[41,0,41,8],[59,0,59,8],[57,0,57,8],[58,0,58,8],[47,0,47,8]]}
["Return to index"]
["The Scottish Government"]
["Scotlands Labour Market People, Places and Regions\nAnnual Population Survey 2019"]
[]
["Guidance on the statistics"]
[]
["This release presents annual estimates from the Annual Population Survey (APS). The APS combines results from the Labour Force Survey (LFS) and the English, Welsh and Scottish Labour Force Survey boosts. The boosts increase the sample size which means the APS can provide more robust labour market estimates for local areas compared to the main LFS. Thus the APS is the primary source for information on local labour markets providing headline estimates on employment, unemployment and economic activity.  The APS is the largest annual household survey in Scotland and provides a wealth of information about individuals’ personal circumstances and their work. "]
[]
["Information from the APS is used by the Scottish Government to inform government targets and policies. Some of the many external users of the APS include Local authorities, Scottish Enterprise, Highlands & Islands Enterprise, Skills Development Scotland, Higher & Further Education sector. Uses include monitoring targets, statistical analysis, policy development and briefing.  "]
[]
["What topics are available?"]
[]
["A wide range of topics are included in the survey: \n    - Economic Activity (present or past)\n    - Employment in main job and second jobs\n    - Working conditions (hours, work pattern etc.) \n    - Reasons why people are not in the labour force\n    - Geographical mobility\n    - Education and training\n    - Health\n    - Childcare\n    - Income\n    - Individual and household characteristics"]
[]
["How and when is the survey conducted?"]
[]
["The Office for National Statistics (ONS) carries out the LFS and associated boosts. "]
[]
["The APS datasets are based on calendar quarters and are produced quarterly on a rolling annual basis (covering 12 months of data).  The four annual APS datasets produced by ONS each year cover the periods January to December, April to March, July to June and October to September."]
[]
["The APS data use the existing continuous quarterly LFS in addition to annual enhancements. In the quarterly LFS, each person in a selected household is interviewed five times at 13-week intervals. In any three-month period, about a fifth of the sample are being interviewed for the first time, another fifth are receiving their second interview and so on, with 20% being interviewed for the fifth and final time. Each of these roughly equal groups is termed a wave i.e. 'wave 1' refers to those people having their first interview. "]
[]
["Who takes part in the survey?"]
[]
["The LFS surveys individuals living at private households in the UK and is designed to be representative of the national population. "]
[]
["The Scottish Government funds the boost to the LFS sample in Scotland, taking the sample size from approximately 5,000 households each year to 17,000 households."]
[]
["The target sample size in each local authority is 675 economically active adults except for Clackmannanshire (250); Dumfries and Galloway (700), East Lothian (600); East Renfrewshire (600); Inverclyde (600); Midlothian (600); Moray (600); Na h-Eileanan Siar, Orkney Islands and Shetland Islands (600); Stirling (600) and West Dunbartonshire (700)."]
[]
["Revision of estimates"]
[]
["Estimates for the APS for Jan-Dec 2012 to Jan-Dec 2017 were reweighted to mid-year population estimates in March 2019. Consequently, this has had some impact on historical estimates and the estimates for these years may differ from previously published results.  Further reweighting of the survey will occur annually, although not all years will be reweighted."]
[]
["How reliable are the results?"]
[]
["As survey results, these are subject to a degree of error and implied changes between years which may not be significant and instead be within a given error range. Confidence limits for estimates should be taken into account, especially for changes over time. Annex B in the main publication provides more information and confidence limits are included in the web tables for each indicator."]
[]
["How data are displayed in Tables  \n\n"]
[]
["In this publication, all levels are rounded to the nearest hundred. Proportions are calculated on unrounded figures and are rounded to the first decimal place. Totals may not equal the sum of individual components due to rounding. All results are based on the area of residence unless otherwise stated.   "]
[]
["x - indicates data are suppressed as estimates are below the reliability threshold. \n"]
[]
["Scottish Government"]
[]
["The Labour Market Statistics Branch at the Scottish Government publish data from the LFS and APS and other related surveys on their website:"]
["https://www.gov.scot/collections/labour-market-statistics/"]
[]
["Alternatively, tabulations are also available on request:"]
[]
["Labour Market Statistics Branch\nOffice of the Chief Economic Advisor\nScottish Government\n5th Floor, 5 Atlantic Quay\nGLASGOW  G2 8LU"]
["Tel: (0131) 244 6773"]
["Email: lmstats@scotland.gsi.gov.uk"]
[]
["Access to data"]
[]
["https://www.nomisweb.co.uk/Default.asp"]
[]
["Nomis is the ONS's official portal for labour market statistics. Various tabulations are available across a range of different datasets, including APS, Annual Survey of Hours and Earnings (ASHE), Business Register Employment Survey (BRES), Claimant Count and DWP Benefits. Note that some estimates from Nomis for the APS may differ slightly from those presented in this publication due to differnces in how local authority geographies are constructed."]

{"sheet":"Chart 1","index":3,"n_rows":51,"n_cols":6,"rows_kept":51,"cut":false,"hidden":false,"merged":[[47,1,47,6],[48,1,48,4],[49,1,49,4],[50,1,50,7],[0,0,0,1],[26,2,26,3],[26,4,26,5],[2,1,2,7],[45,1,45,5]]}
["Return to index"]
[]
[null,"Chart 1: Employment level for ages 16 and over, Scotland, 2004 to 2019;\nand employment rate for ages 16 to 64, Scotland and UK, 2004 to 2019"]
[]
[]
[]
[]
[]
[]
[]
[]
[]
[]
[]
[]
[]
[]
[]
[]
[]
[]
[]
[]
[]
[]
[]
[null,null,"Scotland",null,"UK"]
[null,null,"Rate\n(per cent)","Level","Rate\n(per cent)","Level"]
[null,2004,72.599999999999994,2430000,72.5,28330400]
[null,2005,73,2454600,72.5,28670200]
[null,2006,73.7,2500200,72.400000000000006,28953500]
[null,2007,73.900000000000006,2528400,72.400000000000006,29271500]
[null,2008,73.599999999999994,2534600,72.099999999999994,29425100]
[null,2009,72,2497700,70.599999999999994,28995100]
[null,2010,71,2479700,70.099999999999994,29047600]
[null,2011,70.5,2476300,69.8,29173400]
[null,2012,70.5,2481800,70.5,29462600]
[null,2013,70.8,2495100,71.2,29879200]
[null,2014,72.599999999999994,2558800,72.3,30476000]
[null,2015,73.099999999999994,2582900,73.400000000000006,31162700]
[null,2016,73,2596200,73.8,31500400]
[null,2017,74.2,2638900,74.7,31937900]
[null,2018,74.099999999999994,2638400,75,32168600]
[null,2019,74.8,2663900,75.599999999999994,32551900]
[]
[null,"Source: Annual Population Survey, Jan-Dec datasets, ONS"]
[null,"Notes:"]
[null,"1.  Levels cover those aged 16 and over. Rates cover those aged 16 to 64."]
[null,"2.  Levels rounded to the nearest hundred."]
[null,"3.  Rates are calculated on unrounded figures."]
[null,"4.  See the concepts and definitions section of the publication for more detail on estimates. "]

{"sheet":"Chart 2","index":4,"n_rows":50,"n_cols":5,"rows_kept":50,"cut":false,"hidden":false,"merged":[[49,1,49,8],[26,4,27,4],[26,2,26,3],[0,0,0,1],[2,1,2,7],[45,1,45,5],[47,1,47,3],[48,1,48,4]]}
["Return to index"]
[]
[null,"Chart 2: Employment rate for ages 16 to 64 by gender, 2004 to 2019"]
[]
[]
[]
[]
[]
[]
[]
[]
[]
[]
[]
[]
[]
[]
[]
[]
[]
[]
[]
[]
[]
[]
[]
[null,null,"Employment Rate (per cent)",null,"Gender Gap\n(p.p.)"]
[null,null,"Men","Women"]
[null,2004,77.8,67.7,10.199999999999999]
[null,2005,77.7,68.400000000000006,9.3000000000000007]
[null,2006,78.400000000000006,69.3,9.1999999999999993]
[null,2007,79.3,68.7,10.6]
[null,2008,78.900000000000006,68.400000000000006,10.5]
[null,2009,76.2,68,8.1999999999999993]
[null,2010,74.900000000000006,67.3,7.5]
[null,2011,74.8,66.3,8.5]
[null,2012,74.5,66.7,7.8]
[null,2013,74.400000000000006,67.400000000000006,7]
[null,2014,76.5,68.900000000000006,7.6]
[null,2015,76.2,70.099999999999994,6.1]
[null,2016,76.900000000000006,69.2,7.6]
[null,2017,77.8,70.900000000000006,6.9]
[null,2018,78,70.3,7.6]
[null,2019,78,71.7,6.3]
[]
[null,"Source: Annual Population Survey, Jan-Dec datasets, ONS"]
[null,"Notes:"]
[null,"1.  Rates cover those aged 16 to 64."]
[null,"2.  Rates are calculated on unrounded figures."]
[null,"3.  See the concepts and definitions section of the publication for more detail on estimates. "]

{"sheet":"Chart 3","index":5,"n_rows":45,"n_cols":14,"rows_kept":45,"cut":false,"hidden":false,"merged":[[0,0,0,1],[4,11,4,12],[4,13,5,13],[2,1,2,7],[44,10,44,15],[43,10,43,12],[42,10,42,11],[40,10,40,12]]}
["Return to index"]
[]
[null,"Chart 3: Gender Employment gap by local authority, 2019"]
[]
[null,null,null,null,null,null,null,null,null,null,null,"Employment Rate (per cent)",null,"Gender Gap\n(p.p.)"]
[null,null,null,null,null,null,null,null,null,null,null,"Men","Women"]
[null,null,null,null,null,null,null,null,null,null,"Moray",82.8,66.900000000000006,15.9]
[null,null,null,null,null,null,null,null,null,null,"Shetland Islands",84,70.5,13.5]
[null,null,null,null,null,null,null,null,null,null,"Orkney Islands",92.8,81.099999999999994,11.7]
[null,null,null,null,null,null,null,null,null,null,"Perth and Kinross",88.9,78,10.9]
[null,null,null,null,null,null,null,null,null,null,"East Lothian",84.5,73.8,10.7]
[null,null,null,null,null,null,null,null,null,null,"Edinburgh, City of",80.599999999999994,70,10.6]
[null,null,null,null,null,null,null,null,null,null,"North Ayrshire",75.900000000000006,65.5,10.4]
[null,null,null,null,null,null,null,null,null,null,"Dumfries and Galloway",79.599999999999994,70.7,8.9]
[null,null,null,null,null,null,null,null,null,null,"Aberdeenshire",85.2,76.3,8.9]
[null,null,null,null,null,null,null,null,null,null,"Scottish Borders",80.8,72,8.8000000000000007]
[null,null,null,null,null,null,null,null,null,null,"Aberdeen City",83.5,74.7,8.8000000000000007]
[null,null,null,null,null,null,null,null,null,null,"West Lothian",81.8,74,7.8]
[null,null,null,null,null,null,null,null,null,null,"Highland",82.5,74.8,7.7]
[null,null,null,null,null,null,null,null,null,null,"Clackmannanshire",78.099999999999994,70.900000000000006,7.2]
[null,null,null,null,null,null,null,null,null,null,"Angus",79.2,72.2,6.9]
[null,null,null,null,null,null,null,null,null,null,"Fife",77.2,70.400000000000006,6.9]
[null,null,null,null,null,null,null,null,null,null,"SCOTLAND",78,71.7,6.3]
[null,null,null,null,null,null,null,null,null,null,"South Ayrshire",77.099999999999994,70.900000000000006,6.1]
[null,null,null,null,null,null,null,null,null,null,"Renfrewshire",79.900000000000006,73.900000000000006,6]
[null,null,null,null,null,null,null,null,null,null,"East Ayrshire",77.2,71.5,5.7]
[null,null,null,null,null,null,null,null,null,null,"South Lanarkshire",79.5,73.900000000000006,5.6]
[null,null,null,null,null,null,null,null,null,null,"Argyll and Bute",77.3,71.8,5.5]
[null,null,null,null,null,null,null,null,null,null,"Falkirk",76.8,71.5,5.3]
[null,null,null,null,null,null,null,null,null,null,"East Renfrewshire",75.900000000000006,71,4.9000000000000004]
[null,null,null,null,null,null,null,null,null,null,"Dundee City",70.3,66.900000000000006,3.4]
[null,null,null,null,null,null,null,null,null,null,"Midlothian",81.8,79.099999999999994,2.7]
[null,null,null,null,null,null,null,null,null,null,"North Lanarkshire",75.599999999999994,73.099999999999994,2.4]
[null,null,null,null,null,null,null,null,null,null,"Stirling",74.099999999999994,72,2.2000000000000002]
[null,null,null,null,null,null,null,null,null,null,"East Dunbartonshire",78,76.900000000000006,1.1000000000000001]
[null,null,null,null,null,null,null,null,null,null,"Inverclyde",68.8,67.8,1.1000000000000001]
[null,null,null,null,null,null,null,null,null,null,"Glasgow City",67.8,66.900000000000006,0.9]
[null,null,null,null,null,null,null,null,null,null,"West Dunbartonshire",73.3,74.400000000000006,-1.2]
[null,null,null,null,null,null,null,null,null,null,"Na h'Eileanan Siar",79.2,85.4,-6.3]
[]
[null,null,null,null,null,null,null,null,null,null,"Source: Annual Population Survey, Jan-Dec datasets, ONS"]
[null,null,null,null,null,null,null,null,null,null,"Notes:"]
[null,null,null,null,null,null,null,null,null,null,"1.  Rates cover those aged 16 to 64."]
[null,null,null,null,null,null,null,null,null,null,"2.  Rates are calculated on unrounded figures."]
[null,null,null,null,null,null,null,null,null,null,"3.  See the concepts and definitions section of the publication for more detail on estimates. "]

{"sheet":"Chart 4","index":6,"n_rows":50,"n_cols":6,"rows_kept":50,"cut":false,"hidden":false,"merged":[[48,1,48,4],[49,1,49,8],[47,1,47,4],[26,2,26,5],[0,0,0,1],[2,1,2,7],[45,1,45,5]]}
["Return to index"]
[]
[null,"Chart 4: Employment rate for ages 16 to 64 by age, 2004 to 2019"]
[]
[]
[]
[]
[]
[]
[]
[]
[]
[]
[]
[]
[]
[]
[]
[]
[]
[]
[]
[]
[]
[]
[]
[null,null,"Employment Rate (per cent)"]
[null,null,"16 to 24","25 to 34","35 to 49","50 to 64"]
[null,2004,63.4,79.3,82.3,61.9]
[null,2005,63.9,79.599999999999994,82.2,62.8]
[null,2006,63.1,80.400000000000006,83.8,63.7]
[null,2007,62.6,81.400000000000006,83.5,64.400000000000006]
[null,2008,60.7,81.099999999999994,83.2,65.2]
[null,2009,57.6,79.599999999999994,81.900000000000006,64.5]
[null,2010,55.5,78.099999999999994,81.599999999999994,64.099999999999994]
[null,2011,54.2,79,80.900000000000006,63.6]
[null,2012,53.2,78.900000000000006,81.5,63.9]
[null,2013,52.7,78.8,81.8,64.900000000000006]
[null,2014,53.3,80.8,83.4,67.400000000000006]
[null,2015,56.4,80.5,82.4,68.599999999999994]
[null,2016,55.9,80.900000000000006,81.8,68.7]
[null,2017,59.3,82,82.2,69.599999999999994]
[null,2018,57.2,80.599999999999994,83.7,69.7]
[null,2019,57.9,81.599999999999994,84,70.5]
[]
[null,"Source: Annual Population Survey, Jan-Dec datasets, ONS"]
[null,"Notes:"]
[null,"1.  Rates cover specified age groups."]
[null,"2.  Rates are calculated on unrounded figures."]
[null,"3.  See the concepts and definitions section of the publication for more detail on estimates. "]

{"sheet":"Chart 5","index":7,"n_rows":46,"n_cols":5,"rows_kept":46,"cut":false,"hidden":false,"merged":[[45,1,45,8],[0,0,0,1],[26,2,26,4],[41,1,41,5],[2,1,2,11],[43,1,43,3],[44,1,44,4]]}
["Return to index"]
[]
[null,"Chart 5: Participation in full-time education by economic activity for ages 16 to 64, Scotland, 2008 to 2019"]
[]
[]
[]
[]
[]
[]
[]
[]
[]
[]
[]
[]
[]
[]
[]
[]
[]
[]
[]
[]
[]
[]
[]
[null,null,"Level (thousands)"]
[null,null,"Employed","Unemployed","Inactive"]
[null,2008,120,16,147]
[null,2009,120,18,166]
[null,2010,120,23,160]
[null,2011,121,33,167]
[null,2012,119,26,185]
[null,2013,111,31,184]
[null,2014,115,22,185]
[null,2015,126,23,188]
[null,2016,107,18,176]
[null,2017,111,14,183]
[null,2018,104,14,189]
[null,2019,122,10,185]
[]
[null,"Source: Annual Population Survey, Jan-Dec datasets, ONS"]
[null,"Notes:"]
[null,"1.  Levels cover those aged 16 to 64."]
[null,"2.  Levels rounded to the nearest thousand."]
[null,"3.  See the concepts and definitions section of the publication for more detail on estimates. "]

{"sheet":"Chart 6","index":8,"n_rows":34,"n_cols":15,"rows_kept":34,"cut":false,"hidden":false,"merged":[[33,13,33,16],[30,13,30,16],[29,13,29,18],[26,13,26,18],[0,0,0,1],[2,1,2,9]]}
["Return to index"]
[]
[null,"Chart 6: Proportion of workforce 16 to 24 years within industry, 2019"]
[]
[null,null,null,null,null,null,null,null,null,null,null,null,null,null,"Proportion of\nIndustry\n(per cent)"]
[null,null,null,null,null,null,null,null,null,null,null,null,null,"Total Employment",12.3]
[null,null,null,null,null,null,null,null,null,null,null,null,null,"Accommodation and Food Services",36.799999999999997]
[null,null,null,null,null,null,null,null,null,null,null,null,null,"Wholesale, Retail, Repair of Vehicles",22.3]
[null,null,null,null,null,null,null,null,null,null,null,null,null,"Arts, Entertainment and Recreation",18.8]
[null,null,null,null,null,null,null,null,null,null,null,null,null,"Other Service Activities",13.7]
[null,null,null,null,null,null,null,null,null,null,null,null,null,"Construction",11.7]
[null,null,null,null,null,null,null,null,null,null,null,null,null,"Manufacturing",11.4]
[null,null,null,null,null,null,null,null,null,null,null,null,null,"Financial and Insurance Activities",9.8000000000000007]
[null,null,null,null,null,null,null,null,null,null,null,null,null,"Water Supply, Sewerage, Waste*",9.8000000000000007]
[null,null,null,null,null,null,null,null,null,null,null,null,null,"Real Estate Activities*",9.5]
[null,null,null,null,null,null,null,null,null,null,null,null,null,"Administration and Support Services",8.6]
[null,null,null,null,null,null,null,null,null,null,null,null,null,"Information and Communication*",8.4]
[null,null,null,null,null,null,null,null,null,null,null,null,null,"Professional, Scientific, Technical Activities",8.4]
[null,null,null,null,null,null,null,null,null,null,null,null,null,"Electricity, Gas, Air Conditioning Supply*",7.8]
[null,null,null,null,null,null,null,null,null,null,null,null,null,"Agriculture, Forestry and Fishing*",7.7]
[null,null,null,null,null,null,null,null,null,null,null,null,null,"Health and Social Work",7.6]
[null,null,null,null,null,null,null,null,null,null,null,null,null,"Education",6.8]
[null,null,null,null,null,null,null,null,null,null,null,null,null,"Transport and Storage",6.6]
[null,null,null,null,null,null,null,null,null,null,null,null,null,"Mining and Quarrying*",5]
[null,null,null,null,null,null,null,null,null,null,null,null,null,"Public Administration and Defence",4.8]
[]
[null,null,null,null,null,null,null,null,null,null,null,null,null,"* Estimates are based on a small sample size. This may result in less precise estimates, which should be\nused with caution.\n"]
[null,null,null,null,null,null,null,null,null,null,null,null,null,"Source: Annual Population Survey, Jan-Dec datasets, ONS"]
[null,null,null,null,null,null,null,null,null,null,null,null,null,"Notes:"]
[null,null,null,null,null,null,null,null,null,null,null,null,null,"1.  \"Activities of households as employers\" and \"Activities of extraterritorial organisations and bodies\" are not\nshown but are included in the total employment estimate."]
[null,null,null,null,null,null,null,null,null,null,null,null,null,"2.  Total employment estimates also include those who did not provide industry information."]
[null,null,null,null,null,null,null,null,null,null,null,null,null,"3.  Proportions cover those aged 16 to 24."]
[null,null,null,null,null,null,null,null,null,null,null,null,null,"4.  Proportions are based on unrounded figures."]
[null,null,null,null,null,null,null,null,null,null,null,null,null,"5.  See the concepts and definitions section of the publication for more detail on estimates. "]

{"sheet":"Chart 7","index":9,"n_rows":33,"n_cols":15,"rows_kept":33,"cut":false,"hidden":false,"merged":[[0,0,0,1],[2,1,2,9],[32,13,32,16],[29,13,29,16],[28,13,28,18]]}
["Return to index"]
[]
[null,"Chart 7: Proportion of workforce aged 50 and over within industry, 2019"]
[]
[null,null,null,null,null,null,null,null,null,null,null,null,null,null,"Proportion of\nIndustry\n(per cent)"]
[null,null,null,null,null,null,null,null,null,null,null,null,null,"All Employment",33]
[null,null,null,null,null,null,null,null,null,null,null,null,null,"Agriculture, Forestry and Fishing",49]
[null,null,null,null,null,null,null,null,null,null,null,null,null,"Transport and Storage",43]
[null,null,null,null,null,null,null,null,null,null,null,null,null,"Water Supply, Sewerage, Waste",42.6]
[null,null,null,null,null,null,null,null,null,null,null,null,null,"Administration and Support Services",39.1]
[null,null,null,null,null,null,null,null,null,null,null,null,null,"Real Estate Activities",39.1]
[null,null,null,null,null,null,null,null,null,null,null,null,null,"Education",37]
[null,null,null,null,null,null,null,null,null,null,null,null,null,"Manufacturing",36.5]
[null,null,null,null,null,null,null,null,null,null,null,null,null,"Public Administration and Defence",36.4]
[null,null,null,null,null,null,null,null,null,null,null,null,null,"Health and Social Work",35.1]
[null,null,null,null,null,null,null,null,null,null,null,null,null,"Construction",34.1]
[null,null,null,null,null,null,null,null,null,null,null,null,null,"Other Service Activities",31.9]
[null,null,null,null,null,null,null,null,null,null,null,null,null,"Professional, Scientific, Technical Activities",31.2]
[null,null,null,null,null,null,null,null,null,null,null,null,null,"Wholesale, Retail, Repair of Vehicles",27.6]
[null,null,null,null,null,null,null,null,null,null,null,null,null,"Information and Communication",27.5]
[null,null,null,null,null,null,null,null,null,null,null,null,null,"Financial and Insurance Activities",27.2]
[null,null,null,null,null,null,null,null,null,null,null,null,null,"Electricity, Gas, Air Conditioning Supply",25.4]
[null,null,null,null,null,null,null,null,null,null,null,null,null,"Mining and Quarrying",25.2]
[null,null,null,null,null,null,null,null,null,null,null,null,null,"Arts, Entertainment and Recreation",24.8]
[null,null,null,null,null,null,null,null,null,null,null,null,null,"Accommodation and Food Services",21.6]
[]
[null,null,null,null,null,null,null,null,null,null,null,null,null,"Source: Annual Population Survey, Jan-Dec datasets, ONS"]
[null,null,null,null,null,null,null,null,null,null,null,null,null,"Notes:"]
[null,null,null,null,null,null,null,null,null,null,null,null,null,"1.  \"Activities of households as employers\" and \"Activities of extraterritorial organisations and bodies\" are not\nshown but are included in the total employment estimate."]
[null,null,null,null,null,null,null,null,null,null,null,null,null,"2.  Total employment estimates also include those who did not provide industry information."]
[null,null,null,null,null,null,null,null,null,null,null,null,null,"3.  Proportions cover those aged 50 and over."]
[null,null,null,null,null,null,null,null,null,null,null,null,null,"4.  Proportions are based on unrounded figures."]
[null,null,null,null,null,null,null,null,null,null,null,null,null,"5.  See the concepts and definitions section of the publication for more detail on estimates. "]

{"sheet":"Chart 8","index":10,"n_rows":39,"n_cols":5,"rows_kept":39,"cut":false,"hidden":false,"merged":[[38,1,38,8],[0,0,0,1],[2,1,2,10],[26,2,26,4],[34,1,34,5],[36,1,36,3],[37,1,37,4]]}
["Return to index"]
[]
[null,"Chart 8: Disability employment gap for ages 16 to 64 by gender and age, Scotland, 2019"]
[]
[]
[]
[]
[]
[]
[]
[]
[]
[]
[]
[]
[]
[]
[]
[]
[]
[]
[]
[]
[]
[]
[]
[null,null,"Employment Gap (p.p.)"]
[null,null,"All","Men ","Women"]
[null,"16 to 64",32.6,38.200000000000003,27.5]
[null,"16 to 24",18.8,22.3,16.100000000000001]
[null,"25 to 34",29.2,35.1,23.6]
[null,"35 to 49",34.200000000000003,39.700000000000003,28.8]
[null,"50 to 64",38.6,45.7,32]
[]
[null,"Source: Annual Population Survey, Jan-Dec datasets, ONS"]
[null,"Notes:"]
[null,"1.  Rates cover those aged 16 to 64."]
[null,"2.  Rates are calculated on unrounded figures."]
[null,"3.  See the concepts and definitions section of the publication for more detail on estimates. "]

{"sheet":"Chart 9","index":11,"n_rows":35,"n_cols":15,"rows_kept":35,"cut":false,"hidden":false,"merged":[[0,0,0,1],[2,1,2,10],[34,13,34,16],[31,13,31,16],[29,13,29,18],[27,13,27,14],[30,13,30,18],[26,13,26,18]]}
["Return to index"]
[]
[null,"Chart 9: Proportion of workforce with a long-term condition by industry, 2019"]
[]
[null,null,null,null,null,null,null,null,null,null,null,null,null,null,"Proportion in\nEmployment\n(per cent)"]
[null,null,null,null,null,null,null,null,null,null,null,null,null,"All Employment",12.2]
[null,null,null,null,null,null,null,null,null,null,null,null,null,"Transport and Storage",17.100000000000001]
[null,null,null,null,null,null,null,null,null,null,null,null,null,"Water Supply, Sewerage, Waste*",14.5]
[null,null,null,null,null,null,null,null,null,null,null,null,null,"Administration and Support Services",13.6]
[null,null,null,null,null,null,null,null,null,null,null,null,null,"Health and Social Work",13.6]
[null,null,null,null,null,null,null,null,null,null,null,null,null,"Public Administration and Defence",13.4]
[null,null,null,null,null,null,null,null,null,null,null,null,null,"Education",13.2]
[null,null,null,null,null,null,null,null,null,null,null,null,null,"Accommodation and Food Services",13]
[null,null,null,null,null,null,null,null,null,null,null,null,null,"Other Service Activities",12]
[null,null,null,null,null,null,null,null,null,null,null,null,null,"Agriculture, Forestry and Fishing",12]
[null,null,null,null,null,null,null,null,null,null,null,null,null,"Arts, Entertainment and Recreation",11.7]
[null,null,null,null,null,null,null,null,null,null,null,null,null,"Wholesale, Retail, Repair of Vehicles",11.6]
[null,null,null,null,null,null,null,null,null,null,null,null,null,"Manufacturing",11.6]
[null,null,null,null,null,null,null,null,null,null,null,null,null,"Real Estate Activities*",11.3]
[null,null,null,null,null,null,null,null,null,null,null,null,null,"Mining and Quarrying",10.4]
[null,null,null,null,null,null,null,null,null,null,null,null,null,"Construction",10.3]
[null,null,null,null,null,null,null,null,null,null,null,null,null,"Professional, Scientific, Technical Activities",9.6999999999999993]
[null,null,null,null,null,null,null,null,null,null,null,null,null,"Information and Communication",9.1999999999999993]
[null,null,null,null,null,null,null,null,null,null,null,null,null,"Financial and Insurance Activities",9]
[null,null,null,null,null,null,null,null,null,null,null,null,null,"Electricity, Gas, Air Conditioning Supply*",4.3]
[]
[null,null,null,null,null,null,null,null,null,null,null,null,null,"* Estimates are based on a small sample size. This may result in less precise estimates, which should be\nused with caution.\n"]
[null,null,null,null,null,null,null,null,null,null,null,null,null,"Source: Annual Population Survey, Jan-Dec datasets, ONS"]
[null,null,null,null,null,null,null,null,null,null,null,null,null,"Notes:"]
[null,null,null,null,null,null,null,null,null,null,null,null,null,"1.  \"Activities of households as employers\" and \"Activities of extraterritorial organisations and bodies\" are not\nshown but are included in the total employment estimate."]
[null,null,null,null,null,null,null,null,null,null,null,null,null,"2.  Estimates are limited to people who self-reported any of the four long-term conditions including respiratory,\ncardiovascular, diabetes, or a progressive illness."]
[null,null,null,null,null,null,null,null,null,null,null,null,null,"3.  Total employment estimates also include those who did not provide industry information."]
[null,null,null,null,null,null,null,null,null,null,null,null,null,"4.  Proportions cover those aged 16 and over."]
[null,null,null,null,null,null,null,null,null,null,null,null,null,"5.  Proportions are based on unrounded figures."]
[null,null,null,null,null,null,null,null,null,null,null,null,null,"6.  See the concepts and definitions section of the publication for more detail on estimates. "]

{"sheet":"Chart 10","index":12,"n_rows":56,"n_cols":6,"rows_kept":56,"cut":false,"hidden":false,"merged":[[55,1,55,12],[52,1,52,11],[53,1,53,9],[54,1,54,4],[0,0,0,1],[27,2,27,3],[27,4,27,5],[26,2,26,5],[2,1,2,10],[50,1,50,6],[49,1,49,4],[48,1,48,3],[46,1,46,4],[51,1,51,4]]}
["Return to index"]
[]
[null,"Chart 10: Employment rate for minority ethnic and white population ages 16 to 64, Scotland, 2004 to 2019"]
[]
[]
[]
[]
[]
[]
[]
[]
[]
[]
[]
[]
[]
[]
[]
[]
[]
[]
[]
[]
[]
[]
[]
[null,null,"Employment Rate (per cent)"]
[null,null,"Men",null,"Women"]
[null,null,"Minority Ethnic","White","Minority Ethnic","White"]
[null,2004,63.5,78.2,46.8,68.099999999999994]
[null,2005,65.8,78,50.6,68.900000000000006]
[null,2006,68.3,78.7,52.3,69.7]
[null,2007,75.400000000000006,79.400000000000006,56.8,69.099999999999994]
[null,2008,73.5,79.099999999999994,49.9,69]
[null,2009,68.099999999999994,76.5,48.2,68.7]
[null,2010,66.5,75.2,48,68]
[null,"2011**",72.900000000000006,74.900000000000006,48.9,66.900000000000006]
[null,2012,72.099999999999994,74.599999999999994,45.6,67.599999999999994]
[null,2013,63.8,74.8,47.7,68]
[null,2014,72.599999999999994,76.7,48.1,69.8]
[null,2015,73.3,76.3,45.2,71.2]
[null,2016,71.5,77.099999999999994,44.8,70.599999999999994]
[null,2017,71.900000000000006,78.099999999999994,49.4,72]
[null,2018,67.3,78.5,45,71.8]
[null,2019,69,78.5,51.1,73.099999999999994]
[]
[null,"Source: Annual Population Survey, Jan-Dec datasets, ONS"]
[null,"Notes:"]
[null,"1.  Rates cover those aged 16 to 64."]
[null,"2.  Rates are calculated on unrounded figures."]
[null,"3.  See the concepts and definitions section of the publication for more detail on estimates. "]
[null,"**  There is a discontinuity in the series from 2011:"]
[null,"Due to changes in the ethnicity questions on the Annual Population Survey during 2011 these estimates should not be used as a timeseries."]
[null,"They can, however, be used to estimate the relative levels of economic activity of the different ethnic groupings. "]
[null,"A more detailed note is available on the ONS website at: "]
[null,"http://www.ons.gov.uk/ons/guide-method/method-quality/specific/labour-market/subnational-labour/index.html"]

{"sheet":"Chart 11","index":13,"n_rows":39,"n_cols":6,"rows_kept":39,"cut":false,"hidden":false,"merged":[[38,1,38,8],[37,1,37,4],[36,1,36,4],[27,3,27,5],[0,0,0,1],[34,1,34,5],[2,1,2,9]]}
["Return to index"]
[]
[null,"Chart 11: Employment rate for ages 16 to 64 by gender and full-time/part-time, 2019"]
[]
[]
[]
[]
[]
[]
[]
[]
[]
[]
[]
[]
[]
[]
[]
[]
[]
[]
[]
[]
[]
[]
[]
[]
[null,null,null,"Employment Level (thousands)"]
[null,null,null,2009,2019,"Change since 2019"]
[null,"Men","Full-time",1151,1192,41]
[null,null,"Part-time",141,169,28]
[null,"Women","Full-time",697,765,68]
[null,null,"Part-time",505,535,30]
[]
[null,"Source: Annual Population Survey, Jan-Dec datasets, ONS"]
[null,"Notes:"]
[null,"1.  Levels cover those aged 16 to 64."]
[null,"2.  Levels rounded to the nearest thousand."]
[null,"3.  See the concepts and definitions section of the publication for more detail on estimates. "]

{"sheet":"Chart 12","index":14,"n_rows":40,"n_cols":4,"rows_kept":40,"cut":false,"hidden":false,"merged":[[0,0,0,1],[2,1,2,10],[26,2,26,3],[35,1,35,6],[39,1,39,9],[38,1,38,5],[37,1,37,5]]}
["Return to index"]
[]
[null,"Chart 12: Share of employees (18 years and over) which is secure by age and gender  2019"]
[]
[]
[]
[]
[]
[]
[]
[]
[]
[]
[]
[]
[]
[]
[]
[]
[]
[]
[]
[]
[]
[]
[]
[null,null,"Proportion in\nsecure employment\n(per cent)"]
[null,null,"Men","Women"]
[null,"All",96.8,96.1]
[null,"18 to 24",91.8,89.4]
[null,"25 to 34",96.3,95.8]
[null,"35 to 49",98,97.5]
[null,"50 to 64",98.2,97.5]
[null,"65 and over",96.9,97.7]
[]
[null,"Source: Annual Population Survey, Jan-Dec datasets, ONS"]
[null,"Notes:"]
[null,"1.  Proportions for \"All\" cover those aged 16 and over."]
[null,"2.  Proporitons are calculated on unrounded figures."]
[null,"3.  See the concepts and definitions section of the publication for more detail on estimates. "]

{"sheet":"Chart 13","index":15,"n_rows":50,"n_cols":5,"rows_kept":50,"cut":false,"hidden":false,"merged":[[48,1,48,4],[49,1,49,7],[26,2,26,4],[0,0,0,1],[45,1,45,4],[2,1,2,12],[47,1,47,4]]}
["Return to index"]
[]
[null,"Chart 13: Proportion of people aged 16 and over in employment who are self-employed by gender, 2004 to 2019"]
[]
[]
[]
[]
[]
[]
[]
[]
[]
[]
[]
[]
[]
[]
[]
[]
[]
[]
[]
[]
[]
[]
[]
[null,null,"Proportion of people (16 and over) in employment who are self employed (per cent)"]
[null,null,"Men","Women","All"]
[null,2004,14.2,5.7,10.199999999999999]
[null,2005,13.7,5.8,9.9]
[null,2006,14.6,6.2,10.6]
[null,2007,14.1,6.3,10.4]
[null,2008,14.1,6.7,10.6]
[null,2009,14.1,6.9,10.6]
[null,2010,14.6,7,10.9]
[null,2011,15.5,7.1,11.5]
[null,2012,16.100000000000001,7.9,12.2]
[null,2013,15,7.8,11.5]
[null,2014,15.2,8.1999999999999993,11.8]
[null,2015,14.8,8.1999999999999993,11.5]
[null,2016,16.100000000000001,9.1,12.7]
[null,2017,15.8,8.6,12.3]
[null,2018,16,8.1,12.2]
[null,2019,15.6,9,12.4]
[]
[null,"Source: Annual Population Survey, Jan-Dec datasets, ONS"]
[null,"Notes:"]
[null,"1.  Proportions cover those aged 16 and over."]
[null,"2.  Proporitons are calculated on unrounded figures."]
[null,"3.  See the concepts and definitions section of the publication for more detail on estimates. "]

{"sheet":"Chart 14","index":16,"n_rows":45,"n_cols":9,"rows_kept":45,"cut":false,"hidden":false,"merged":[[42,1,42,4],[43,1,43,4],[44,1,44,6],[0,0,0,1],[38,1,38,5],[2,1,2,6],[37,1,37,5],[41,1,41,3],[40,1,40,6]]}
["Return to index"]
[]
[null,"Chart 14: Employment for ages 16 and over by gender and work pattern, 2019"]
[]
[]
[]
[]
[]
[]
[]
[]
[]
[]
[]
[]
[]
[]
[]
[]
[]
[]
[]
[]
[]
[]
[]
[]
[]
[]
[]
[]
[null,null,null,"Total*","Full-Time\nEmployees","Part-Time\nEmployees","Full-Time\nSelf-Employed","Part-Time\nSelf-Employed","Other"]
[null,"Men","Levels",1363400,1011200,131100,178900,33500,8700]
[null,null,"Proportions\n(per cent)",{"$f":"ROUND(100*D33/(D33+D35),1)","v":51.2},74.2,9.6,13.1,2.5,0.6]
[null,"Women","Levels",1300500,705600,471400,58300,58600,6600]
[null,null,"Proportions\n(per cent)",{"$f":"ROUND(100*D35/(D33+D35),1)","v":48.8},54.3,36.200000000000003,4.5,4.5,0.5]
[]
[null,"* Total proportions are proportion of gender in employment."]
[null,"Source: Annual Population Survey, Jan-Dec datasets, ONS"]
[null,"Notes:"]
[null,"1.  A small number of respondents who were unable to report whether they were full-time or\npart-time have been excluded."]
[null,"2.  Levels cover those aged 16 and over."]
[null,"3.  Levels rounded to the nearest hundred."]
[null,"4.  Proportions are calculated on unrounded figures."]
[null,"5.  See the concepts and definitions section of the publication for more detail on estimates. "]

{"sheet":"Chart 15","index":17,"n_rows":54,"n_cols":6,"rows_kept":54,"cut":false,"hidden":false,"merged":[[53,1,53,4],[52,1,52,5],[26,2,26,5],[0,0,0,1],[2,1,2,9],[45,1,45,5],[51,1,51,6],[50,1,50,5],[49,1,49,8],[48,1,48,4],[47,1,47,5]]}
["Return to index"]
[]
[null,"Chart 15: Underemployment rate for ages 16 and over by age, 2004 to 2019"]
[]
[]
[]
[]
[]
[]
[]
[]
[]
[]
[]
[]
[]
[]
[]
[]
[]
[]
[]
[]
[]
[]
[]
[null,null,"Underemployment Rate (per cent)"]
[null,null,"16 to 24","25 to 34","35 to 49","50 and over"]
[null,2004,13.7,7.2,6.4,4.8]
[null,2005,14.7,6.1,5.6,4.4000000000000004]
[null,2006,14.9,6.6,6,4.0999999999999996]
[null,2007,14,6.6,5.6,4.4000000000000004]
[null,2008,13.7,7.4,5.8,4.7]
[null,2009,16.8,8.9,7.2,5.9]
[null,2010,20.8,9.4,7.8,6.1]
[null,2011,20.100000000000001,10,8.5,6.8]
[null,2012,22,10.199999999999999,8.6999999999999993,6.2]
[null,2013,19.399999999999999,10.1,8.3000000000000007,6.7]
[null,2014,19.399999999999999,7.7,7.5,5.8]
[null,2015,17.3,10.4,8,6.1]
[null,2016,16.100000000000001,9.1999999999999993,7.5,5.6]
[null,2017,16.100000000000001,8.4,6.6,5.8]
[null,2018,16.5,7,6.8,4.9000000000000004]
[null,2019,16.600000000000001,7.1,6,4.7]
[]
[null,"Source: Annual Population Survey, Jan-Dec datasets, ONS"]
[null,"Notes:"]
[null,"1.  Rates cover those aged 16 and over in employment."]
[null,"2.  Rates are calculated on unrounded figures."]
[null,"3.  See the concepts and definitions section of the publication for more detail on estimates. "]
[null,"4.  Underemployment estimates cover those looking for:"]
[null,"- Additional hours in their existing role (at the same rate of pay)."]
[null,"- An additional job (to supplement their existing job)."]
[null,"- A different job with more hours."]

{"sheet":"Chart 16","index":18,"n_rows":31,"n_cols":16,"rows_kept":31,"cut":false,"hidden":false,"merged":[[26,13,26,14],[30,13,30,16],[0,0,0,1],[4,14,4,15],[2,1,2,13]]}
["Return to index"]
[]
[null,"Chart 16: Change in the number of people employed and aged 16 and over since 2009 by industry and gender, Scotland"]
[]
[null,null,null,null,null,null,null,null,null,null,null,null,null,null,"Change 2009 to 2019\n(thousands)"]
[null,null,null,null,null,null,null,null,null,null,null,null,null,null,"Men","Women"]
[null,null,null,null,null,null,null,null,null,null,null,null,null,"Agriculture, Forestry and Fishing",-10000,0]
[null,null,null,null,null,null,null,null,null,null,null,null,null,"Mining and Quarrying",14000,5000]
[null,null,null,null,null,null,null,null,null,null,null,null,null,"Manufacturing",-7000,0]
[null,null,null,null,null,null,null,null,null,null,null,null,null,"Electricity, Gas, Air Conditioning Supply",2000,-2000]
[null,null,null,null,null,null,null,null,null,null,null,null,null,"Water Supply, Sewerage, Waste",1000,2000]
[null,null,null,null,null,null,null,null,null,null,null,null,null,"Construction",-6000,1000]
[null,null,null,null,null,null,null,null,null,null,null,null,null,"Wholesale, Retail, Repair of Vehicles",7000,-2000]
[null,null,null,null,null,null,null,null,null,null,null,null,null,"Transport and Storage",-3000,1000]
[null,null,null,null,null,null,null,null,null,null,null,null,null,"Accommodation and Food Services",14000,8000]
[null,null,null,null,null,null,null,null,null,null,null,null,null,"Information and Communication",14000,7000]
[null,null,null,null,null,null,null,null,null,null,null,null,null,"Financial and Insurance Activities",17000,-7000]
[null,null,null,null,null,null,null,null,null,null,null,null,null,"Real Estate Activities",3000,2000]
[null,null,null,null,null,null,null,null,null,null,null,null,null,"Professional, Scientific, Technical Activities",5000,18000]
[null,null,null,null,null,null,null,null,null,null,null,null,null,"Administration and Support Services",-5000,12000]
[null,null,null,null,null,null,null,null,null,null,null,null,null,"Public Administration and Defence",6000,21000]
[null,null,null,null,null,null,null,null,null,null,null,null,null,"Education",2000,-2000]
[null,null,null,null,null,null,null,null,null,null,null,null,null,"Health and Social Work",0,20000]
[null,null,null,null,null,null,null,null,null,null,null,null,null,"Arts, Entertainment and Recreation",6000,-3000]
[null,null,null,null,null,null,null,null,null,null,null,null,null,"Other Service Activities",9000,16000]
[]
[null,null,null,null,null,null,null,null,null,null,null,null,null,"Source: Annual Population Survey, Jan-Dec datasets, ONS"]
[null,null,null,null,null,null,null,null,null,null,null,null,null,"Notes:"]
[null,null,null,null,null,null,null,null,null,null,null,null,null,"1.  Levels cover those aged 16 and over."]
[null,null,null,null,null,null,null,null,null,null,null,null,null,"2.  Levels rounded to the nearest thousand."]
[null,null,null,null,null,null,null,null,null,null,null,null,null,"3.  See the concepts and definitions section of the publication for more detail on estimates. "]

{"sheet":"Chart 17","index":19,"n_rows":39,"n_cols":18,"rows_kept":39,"cut":false,"hidden":false,"merged":[[37,1,37,3],[38,1,38,8],[26,2,26,17],[2,1,2,12],[0,0,0,1],[34,1,34,5],[36,1,36,3]]}
["Return to index"]
[]
[null,"Chart 17: Cumulative increase in occupation skils level of employment for ages 16 and over, Scotland, 2004 to 2019"]
[]
[]
[]
[]
[]
[]
[]
[]
[]
[]
[]
[]
[]
[]
[]
[]
[]
[]
[]
[]
[]
[]
[]
[null,null,"Cumulative change on year (thousands)"]
[null,null,2004,2005,2006,2007,2008,2009,2010,2011,2012,2013,2014,2015,2016,2017,2018,2019]
[null,"High Skill",0,17.5,44.1,65.599999999999994,67.400000000000006,63.7,56.6,48.9,86.5,96.4,105,125.1,152.9,161.30000000000001,159.30000000000001,196]
[null,"Medium to High Skill",0,-3.1,17.600000000000001,34.1,42.7,20.5,17,31.7,8.6999999999999993,3.9,51.4,41.1,40,65.400000000000006,69.3,79.7]
[null,"Low to Medium Skill",0,13.1,4.3,-3.6,4.7,-15.3,-17.399999999999999,-38.200000000000003,-40.200000000000003,-42.6,-35.1,-16.3,-31.9,-22.4,-22.7,-39.299999999999997]
[null,"Low Skill",0,-4.0999999999999996,2.5,-1.3,-12.7,-2.4,-10.1,0.5,-12.5,-1.8,1.8,-2.9,-1.6,0.6,-2.2000000000000002,-3.8]
[null,"Total",0,23.3,68.5,94.7,102.1,66.599999999999994,46.1,42.9,42.4,55.9,123.1,147,159.4,205,203.6,232.5]
[]
[null,"Source: Annual Population Survey, Jan-Dec datasets, ONS"]
[null,"Notes:"]
[null,"1.  Levels cover those aged 16 and over."]
[null,"2.  Levels rounded to the nearest thousand."]
[null,"3.  See the concepts and definitions section of the publication for more detail on estimates. "]

{"sheet":"Chart 18","index":20,"n_rows":33,"n_cols":15,"rows_kept":33,"cut":false,"hidden":false,"merged":[[0,0,0,1],[2,1,2,12],[32,13,32,16],[29,13,29,16],[28,13,28,18],[26,13,26,14]]}
["Return to index"]
[]
[null,"Chart 18: Proportion of low and medium-low skilled jobs by industry, 2019"]
[]
[null,null,null,null,null,null,null,null,null,null,null,null,null,null,"Proportion in\nIndustry\n(per cent)"]
[null,null,null,null,null,null,null,null,null,null,null,null,null,"All Employment",44.7]
[null,null,null,null,null,null,null,null,null,null,null,null,null,"Transport and Storage",75.099999999999994]
[null,null,null,null,null,null,null,null,null,null,null,null,null,"Wholesale, Retail, Repair of Vehicles",71.3]
[null,null,null,null,null,null,null,null,null,null,null,null,null,"Administration and Support Services",66.599999999999994]
[null,null,null,null,null,null,null,null,null,null,null,null,null,"Water Supply, Sewerage, Waste",64.5]
[null,null,null,null,null,null,null,null,null,null,null,null,null,"Accommodation and Food Services",62.7]
[null,null,null,null,null,null,null,null,null,null,null,null,null,"Other Service Activities",53.3]
[null,null,null,null,null,null,null,null,null,null,null,null,null,"Health and Social Work",48.7]
[null,null,null,null,null,null,null,null,null,null,null,null,null,"Manufacturing",38.700000000000003]
[null,null,null,null,null,null,null,null,null,null,null,null,null,"Arts, Entertainment and Recreation",35.700000000000003]
[null,null,null,null,null,null,null,null,null,null,null,null,null,"Public Administration and Defence",34.1]
[null,null,null,null,null,null,null,null,null,null,null,null,null,"Financial and Insurance Activities",32.1]
[null,null,null,null,null,null,null,null,null,null,null,null,null,"Agriculture, Forestry and Fishing",32]
[null,null,null,null,null,null,null,null,null,null,null,null,null,"Education",30.6]
[null,null,null,null,null,null,null,null,null,null,null,null,null,"Electricity, Gas, Air Conditioning Supply",29.6]
[null,null,null,null,null,null,null,null,null,null,null,null,null,"Mining and Quarrying",25.8]
[null,null,null,null,null,null,null,null,null,null,null,null,null,"Construction",25.3]
[null,null,null,null,null,null,null,null,null,null,null,null,null,"Professional, Scientific, Technical Activities",22.8]
[null,null,null,null,null,null,null,null,null,null,null,null,null,"Real Estate Activities",22.2]
[null,null,null,null,null,null,null,null,null,null,null,null,null,"Information and Communication",16.399999999999999]
[]
[null,null,null,null,null,null,null,null,null,null,null,null,null,"Source: Annual Population Survey, Jan-Dec datasets, ONS"]
[null,null,null,null,null,null,null,null,null,null,null,null,null,"Notes:"]
[null,null,null,null,null,null,null,null,null,null,null,null,null,"1.  \"Activities of households as employers\" and \"Activities of extraterritorial organisations and bodies\" are not\nshown but are included in the total employment estimate."]
[null,null,null,null,null,null,null,null,null,null,null,null,null,"2.  Total employment estimates also include those who did not provide industry information."]
[null,null,null,null,null,null,null,null,null,null,null,null,null,"3.  Proportions cover those aged 16 and over."]
[null,null,null,null,null,null,null,null,null,null,null,null,null,"4.  Proporitons are calculated on unrounded figures."]
[null,null,null,null,null,null,null,null,null,null,null,null,null,"5.  See the concepts and definitions section of the publication for more detail on estimates. "]

{"sheet":"Chart 19","index":21,"n_rows":64,"n_cols":11,"rows_kept":64,"cut":false,"hidden":false,"merged":[[57,8,58,13],[62,8,62,11],[59,8,59,11],[55,8,55,9],[0,0,0,1],[2,1,2,6],[2,8,2,14],[43,2,43,3],[43,9,43,10]]}
["Return to index"]
[]
[null,"Chart 19a: Proportion of sector employment aged 16 and over by Gender, Scotland, 2019",null,null,null,null,null,null,"Chart 19b: Proportion of occupation employment aged 16 and over by Gender and occupation, Scotland, 2019"]
[]
[]
[]
[]
[]
[]
[]
[]
[]
[]
[]
[]
[]
[]
[]
[]
[]
[]
[]
[]
[]
[]
[]
[]
[]
[]
[]
[]
[]
[]
[]
[]
[]
[]
[]
[]
[]
[]
[]
[]
[null,null,"Proportion in Industry\n(per cent)",null,null,null,null,null,null,"Proportion in Occupation\n(per cent)"]
[null,null,"Men","Women",null,null,null,null,null,"Men","Women"]
[null,"Construction",87.4,12.6,null,null,null,null,"Skilled Trades\n Occupations",90.248240954091401,9.7517590459086083]
[null,"Water Supply, Sewerage, Waste",82.5,17.5,null,null,null,null,"Process, Plant and\n Machine Operatives",89.308106716678608,10.691893283321383]
[null,"Transport and Storage",81.400000000000006,18.600000000000001,null,null,null,null,"Managers and Senior\n Officials",60.205335839780204,39.794664160219796]
[null,"Electricity, Gas, Air Conditioning Supply",80.099999999999994,19.899999999999999,null,null,null,null,"Associate Professional\n and Technical",54.476997744206713,45.523002255793287]
[null,"Mining and Quarrying",78.5,21.5,null,null,null,null,"Elementary Occupations",52.443436714398807,47.556563285601186]
[null,"Agriculture, Forestry and Fishing",77,23,null,null,null,null,"Professional occupations",46.511149167250821,53.488850832749179]
[null,"Manufacturing",76.599999999999994,23.4,null,null,null,null,"Sales and Customer\n Service Occupations",37.573759338488308,62.426240661511692]
[null,"Information and Communication",69.900000000000006,30.1,null,null,null,null,"Administrative and\n Secretarial",24.055733566365667,75.94426643363434]
[null,"Arts, Entertainment and Recreation",55.6,44.4,null,null,null,null,"Personal Service\n Occupations",16.844346425927764,83.155653574072247]
[null,"Professional, Scientific, Technical Activities",54.9,45.1]
[null,"Financial and Insurance Activities",53.1,46.9,null,null,null,null,"Source: Annual Population Survey, Jan-Dec datasets, ONS"]
[null,"Wholesale, Retail, Repair of Vehicles",49.4,50.6,null,null,null,null,"Notes:"]
[null,"Administration and Support Services",46.4,53.6,null,null,null,null,"1.  \"Activities of households as employers\" and \"Activities of extraterritorial organisations and bodies\" are not\nshown but are included in the total employment estimate."]
[null,"Public Administration and Defence",46,54]
[null,"Real Estate Activities",45.4,54.6,null,null,null,null,"2.  Total employment estimates also include those who did not provide industry information."]
[null,"Accommodation and Food Services",45.2,54.8,null,null,null,null,"3.  Proportions cover those aged 16 and over."]
[null,"Other Service Activities",36.200000000000003,63.8,null,null,null,null,"4.  Proporitons are calculated on unrounded figures."]
[null,"Education",29.4,70.599999999999994,null,null,null,null,"5.  See the concepts and definitions section of the publication for more detail on estimates. "]
[null,"Health and Social Work",20,80]

{"sheet":"Chart 20","index":22,"n_rows":34,"n_cols":18,"rows_kept":34,"cut":false,"hidden":false,"merged":[[33,1,33,7],[2,1,2,13],[0,0,0,1],[29,1,29,4],[31,1,31,2],[32,1,32,3]]}
["Return to index"]
[]
[null,"Chart 20: Proportion of employees aged 16 to 64 who received job related training in the last 3 months, Scotland, 2004 to 2019"]
[]
[]
[]
[]
[]
[]
[]
[]
[]
[]
[]
[]
[]
[]
[]
[]
[]
[]
[]
[]
[]
[]
[]
[null,null,2004,2005,2006,2007,2008,2009,2010,2011,2012,2013,2014,2015,2016,2017,2018,2019]
[null,"Proportion of Workers receiving training (per cent)",31.2,29.9,29.9,27.6,27.8,27.6,27.6,28.1,28.1,29.2,27.9,25.8,22.8,23.1,22.5,23.7]
[]
[null,"Source: Annual Population Survey, Jan-Dec datasets, ONS"]
[null,"Notes:"]
[null,"1.  Proportions cover those aged 16 to 64."]
[null,"2.  Proportions are calculated on unrounded figures."]
[null,"3.  See the concepts and definitions section of the publication for more detail on estimates. "]

{"sheet":"Chart 21","index":23,"n_rows":34,"n_cols":18,"rows_kept":34,"cut":false,"hidden":false,"merged":[[33,1,33,7],[0,0,0,1],[29,1,29,4],[2,1,2,10],[31,1,31,2],[32,1,32,3]]}
["Return to index"]
[]
[null,"Chart 21: Proportion of population aged 16 to 64 with low or no qualifications, Scotland, 2004 to 2019"]
[]
[]
[]
[]
[]
[]
[]
[]
[]
[]
[]
[]
[]
[]
[]
[]
[]
[]
[]
[]
[]
[]
[]
[null,null,2004,2005,2006,2007,2008,2009,2010,2011,2012,2013,2014,2015,2016,2017,2018,2019]
[null,"Proportion of Population with\nlow or no qualification (per cent)",19.100000000000001,17.7,16.5,16.3,16.3,15.7,14.7,14,13.1,12.6,11.6,11.2,11.9,10.8,11.6,11.6]
[]
[null,"Source: Annual Population Survey, Jan-Dec datasets, ONS"]
[null,"Notes:"]
[null,"1.  Proportions cover those aged 16 to 64."]
[null,"2.  Proportions are calculated on unrounded figures."]
[null,"3.  See the concepts and definitions section of the publication for more detail on estimates. "]

{"sheet":"Chart 22","index":24,"n_rows":34,"n_cols":18,"rows_kept":34,"cut":false,"hidden":false,"merged":[[33,1,33,7],[2,1,2,9],[0,0,0,1],[29,1,29,4],[31,1,31,2],[32,1,32,3]]}
["Return to index"]
[]
[null,"Chart 22: Proportion of workers aged 25 to 64 who are graduates, Scotland, 2004 to 2019"]
[]
[]
[]
[]
[]
[]
[]
[]
[]
[]
[]
[]
[]
[]
[]
[]
[]
[]
[]
[]
[]
[]
[]
[null,null,2004,2005,2006,2007,2008,2009,2010,2011,2012,2013,2014,2015,2016,2017,2018,2019]
[null,"Proportion of Workers who are Gradudates (per cent)",21.3,22.3,23.4,24.5,24.8,26.2,27.3,29.4,30.8,31.2,33.200000000000003,34.700000000000003,35.9,35.6,35.799999999999997,37.200000000000003]
[]
[null,"Source: Annual Population Survey, Jan-Dec datasets, ONS"]
[null,"Notes:"]
[null,"1.  Proportions cover those aged 25 to 64."]
[null,"2.  Proportions are calculated on unrounded figures."]
[null,"3.  See the concepts and definitions section of the publication for more detail on estimates. "]

{"sheet":"Chart 23","index":25,"n_rows":50,"n_cols":4,"rows_kept":50,"cut":false,"hidden":false,"merged":[[26,2,26,3],[0,0,0,1],[45,1,45,4],[2,1,2,10],[50,1,50,8],[47,1,47,3],[48,1,48,3],[49,1,49,7]]}
["Return to index"]
[]
[null,"Chart 23: Proportion of workers aged 16 to 64 by level of qualification held, Scotland, 2004 to 2019"]
[]
[]
[]
[]
[]
[]
[]
[]
[]
[]
[]
[]
[]
[]
[]
[]
[]
[]
[]
[]
[]
[]
[]
[null,null,"Proportion of Workers (per cent)"]
[null,null,"Higher Education / Further Education","Low or No Qualifications"]
[null,2004,34.270065537207515,13.472132454145722]
[null,2005,35.119459758560048,12.445302706297726]
[null,2006,36.693772916436004,11.437662409555381]
[null,2007,37.699460262664644,11.295643583185466]
[null,2008,38.158470167403394,10.503417147009136]
[null,2009,39.485999958247319,10.200466074515434]
[null,2010,40.790040645708757,9.2039747606988023]
[null,2011,42.525412502525647,8.5047436809112753]
[null,2012,44.221311543365758,7.980470608913083]
[null,2013,45.00047336759495,7.5931883023218987]
[null,2014,47.04722749187156,7.1086796068000879]
[null,2015,48.368393289588312,7.1003604568450838]
[null,2016,49.239982512377757,7.6649955562930705]
[null,2017,48.492597861926455,7.1360729635409363]
[null,2018,48.932214138392325,7.752619902118159]
[null,2019,50.076957403698387,7.8203713607381697]
[]
[null,"Source: Annual Population Survey, Jan-Dec datasets, ONS"]
[null,"Notes:"]
[null,"1.  Proportions cover those aged 16 to 64."]
[null,"2.  Proportions are calculated on unrounded figures."]
[null,"3.  See the concepts and definitions section of the publication for more detail on estimates. "]

{"sheet":"Chart 24","index":26,"n_rows":52,"n_cols":6,"rows_kept":52,"cut":false,"hidden":false,"merged":[[26,4,26,5],[26,2,26,3],[0,0,0,1],[45,1,45,5],[2,1,2,9],[47,1,47,5],[48,1,48,4],[49,1,49,4],[50,1,50,8],[51,1,51,11]]}
["Return to index"]
[]
[null,"Chart 24: Unemployment Rate for ages 16 and over, Scotland and UK, 2004 to 2019"]
[]
[]
[]
[]
[]
[]
[]
[]
[]
[]
[]
[]
[]
[]
[]
[]
[]
[]
[]
[]
[]
[]
[]
[null,null,"Scotland",null,"UK"]
[null,null,"Rate\n(per cent)","Level","Rate\n(per cent)","Level"]
[null,2004,5.3,137100,4.8,1419200]
[null,2005,5.3,137500,4.9000000000000004,1477800]
[null,2006,5.2,136600,5.4,1637300]
[null,2007,4.7,124600,5.2,1592200]
[null,2008,4.9000000000000004,130100,5.7,1770600]
[null,2009,6.9,185700,7.6,2397800]
[null,2010,7.7,205500,7.6,2400000]
[null,2011,8.1999999999999993,221300,8,2538900]
[null,2012,8,214900,7.9,2516800]
[null,2013,7.7,209200,7.5,2425500]
[null,2014,6.2,169800,6.2,2026700]
[null,2015,5.8,159300,5.3,1727400]
[null,2016,4.8,130400,4.9000000000000004,1606300]
[null,2017,4.0999999999999996,111900,4.4000000000000004,1461000]
[null,2018,4.3,117200,4.2,1393500]
[null,2019,3.5,95800,3.9,1310400]
[]
[null,"Source: Annual Population Survey, Jan-Dec datasets, ONS"]
[null,"Notes:"]
[null,"1.  Levels and rates cover those aged 16 and over."]
[null,"2.  Levels rounded to the nearest hundred."]
[null,"3.  Rates are calculated on unrounded figures."]
[null,"4.  See the concepts and definitions section of the publication for more detail on estimates. "]
[null,"5.  Denominator for unemployment rate is economically active population aged 16 and over (employed and unemployed)"]

{"sheet":"Chart 25","index":27,"n_rows":51,"n_cols":4,"rows_kept":51,"cut":false,"hidden":false,"merged":[[26,2,26,3],[0,0,0,1],[45,1,45,5],[2,1,2,9],[50,1,50,11],[49,1,49,8],[48,1,48,4],[47,1,47,3]]}
["Return to index"]
[]
[null,"Chart 25: Unemployment Rate for ages 16 and over by Gender, Scotland, 2004 to 2019"]
[]
[]
[]
[]
[]
[]
[]
[]
[]
[]
[]
[]
[]
[]
[]
[]
[]
[]
[]
[]
[]
[]
[]
[null,null,"Unemployment Rate (per cent)"]
[null,null,"Men","Women"]
[null,2004,6.1627614305248706,4.4125411940352857]
[null,2005,6.2355417894950493,4.2714368234223477]
[null,2006,6.1475288680272406,4.111236275077685]
[null,2007,5.0079850393104124,4.3483530512149287]
[null,2008,5.1458803635835695,4.5901355629721596]
[null,2009,7.9392344848139551,5.7988156416709398]
[null,2010,8.9133942061728373,6.2694525689506122]
[null,2011,8.8285418976193633,7.5164243638187376]
[null,2012,8.8403665749261684,7.0098729618184752]
[null,2013,8.6661602141300254,6.7235327892130838]
[null,2014,6.7568873442998525,5.6479530575597199]
[null,2015,6.5155601212677006,5.0577100193999724]
[null,2016,5.127456648624503,4.4087736363996743]
[null,2017,4.6235407992768227,3.4693793035942191]
[null,2018,4.5630274865234348,3.9171269177757533]
[null,2019,3.7700518907076668,3.1592218000825083]
[]
[null,"Source: Annual Population Survey, Jan-Dec datasets, ONS"]
[null,"Notes:"]
[null,"1.  Rates cover those aged 16 and over."]
[null,"2.  Rates are calculated on unrounded figures."]
[null,"3.  See the concepts and definitions section of the publication for more detail on estimates. "]
[null,"4.  Denominator for unemployment rate is economically active population aged 16 and over (employed and unemployed)"]

{"sheet":"Chart 26","index":28,"n_rows":49,"n_cols":6,"rows_kept":49,"cut":false,"hidden":false,"merged":[[47,1,47,4],[48,1,48,8],[26,2,26,5],[2,1,2,8],[0,0,0,1],[45,1,45,5],[46,1,46,6]]}
["Return to index"]
[]
[null,"Chart 26: Unemployment Level for ages 16 and over by Age, Scotland, 2004 to 2019"]
[]
[]
[]
[]
[]
[]
[]
[]
[]
[]
[]
[]
[]
[]
[]
[]
[]
[]
[]
[]
[]
[]
[]
[null,null,"Unemployment Level (thousands)"]
[null,null,"16 to 24","25 to 34","35 to 49","50 and over"]
[null,2004,52588,29207,35861,19399]
[null,2005,57586,26978,34366,18595]
[null,2006,55837,30322,30668,19821]
[null,2007,52736,25816,30443,15593]
[null,2008,57735,26234,29724,16432]
[null,2009,70319,38889,46457,30034]
[null,2010,77660,48356,50002,29495]
[null,2011,94653,43508,48776,34373]
[null,2012,85738,46144,48846,34162]
[null,2013,83859,44599,45025,35702]
[null,2014,67337,34951,36139,31404]
[null,2015,57652,30269,39378,32027]
[null,2016,45006,27992,30539,26840]
[null,2017,35376,21578,28378,26520]
[null,2018,35124,29440,25507,27096]
[null,2019,29703,24427,22078,18386]
[]
[null,"Source: Annual Population Survey, Jan-Dec datasets, ONS"]
[null,"Notes:"]
[null,"1.  Levels rounded to the nearest thousand."]
[null,"2.  See the concepts and definitions section of the publication for more detail on estimates. "]

{"sheet":"Chart 27","index":29,"n_rows":50,"n_cols":4,"rows_kept":50,"cut":false,"hidden":false,"merged":[[26,2,26,3],[0,0,0,1],[45,1,45,6],[2,1,2,14],[49,1,49,9],[48,1,48,5],[47,1,47,4]]}
["Return to index"]
[]
[null,"Chart 27: Proportion of 16 to 19 year olds who are not in employment, education or training by gender, Scotland, 2004 to 2019"]
[]
[]
[]
[]
[]
[]
[]
[]
[]
[]
[]
[]
[]
[]
[]
[]
[]
[]
[]
[]
[]
[]
[]
[null,null,"Proportion of Age Group\n(per cent)"]
[null,null,"Men","Women"]
[null,2004,13.7,12]
[null,2005,15.5,13]
[null,2006,13.5,10.7]
[null,2007,11.6,11]
[null,2008,11.6,11.1]
[null,2009,13.7,11.2]
[null,2010,14.2,12.1]
[null,2011,14.5,9.8000000000000007]
[null,2012,14,11.4]
[null,2013,11.5,11]
[null,2014,7.7,9.1]
[null,2015,10.4,8.8000000000000007]
[null,2016,12.7,8.8000000000000007]
[null,2017,9.6,7.4]
[null,2018,6.5,10.4]
[null,2019,10.4,6.7]
[]
[null,"Source: Annual Population Survey, Jan-Dec datasets, ONS"]
[null,"Notes:"]
[null,"1.  Proportions cover those aged 16 to 19."]
[null,"2.  Proportions are calculated on unrounded figures."]
[null,"3.  See the concepts and definitions section of the publication for more detail on estimates. "]

{"sheet":"Chart 28","index":30,"n_rows":50,"n_cols":6,"rows_kept":50,"cut":false,"hidden":false,"merged":[[26,2,26,5],[0,0,0,1],[45,1,45,5],[2,1,2,13],[49,1,49,7],[48,1,48,4],[47,1,47,4]]}
["Return to index"]
[]
[null,"Chart 28: Proportion of people aged 16 and over who are unemployed by duration of unemployment, Scotland, 2004 to 2019"]
[]
[]
[]
[]
[]
[]
[]
[]
[]
[]
[]
[]
[]
[]
[]
[]
[]
[]
[]
[]
[]
[]
[]
[null,null,"Proportion of Unemployed (per cent)"]
[null,null,"Less than 6 months","6 months up to 12 months","12 months up to 24 months","24 months or more"]
[null,2004,61.4,13.8,12.5,12.4]
[null,2005,62.3,15.1,11.3,11.3]
[null,2006,63.1,15,10.6,11.3]
[null,2007,60.8,16.3,11.6,11.3]
[null,2008,68.2,13.2,9.1999999999999993,9.4]
[null,2009,54.8,19.600000000000001,14.8,10.8]
[null,2010,51.4,19.7,16.8,12.1]
[null,2011,51,17.2,15.2,16.600000000000001]
[null,2012,47.4,19.399999999999999,16,17.2]
[null,2013,47.2,17.100000000000001,16.899999999999999,18.8]
[null,2014,48,16.899999999999999,14.6,20.5]
[null,2015,51.5,15.8,15,17.7]
[null,2016,59,14.3,10.199999999999999,16.5]
[null,2017,54.3,16.8,13.5,15.4]
[null,2018,58.2,15.3,10.8,15.7]
[null,2019,58.2,12.3,13.7,15.8]
[]
[null,"Source: Annual Population Survey, Jan-Dec datasets, ONS"]
[null,"Notes:"]
[null,"1.  Proportions cover those aged 16 and over."]
[null,"2.  Proportions are calculated on unrounded figures."]
[null,"3.  See the concepts and definitions section of the publication for more detail on estimates. "]

{"sheet":"Chart 29","index":31,"n_rows":51,"n_cols":6,"rows_kept":51,"cut":false,"hidden":false,"merged":[[49,1,49,4],[50,1,50,8],[26,2,26,3],[26,4,26,5],[0,0,0,1],[45,1,45,5],[2,1,2,9],[47,1,47,4],[48,1,48,4]]}
["Return to index"]
[]
[null,"Chart 29: Economic Inactivity Rate for ages 16 to 64, Scotland and UK, 2004 to 2019"]
[]
[]
[]
[]
[]
[]
[]
[]
[]
[]
[]
[]
[]
[]
[]
[]
[]
[]
[]
[]
[]
[]
[]
[null,null,"Scotland",null,"UK"]
[null,null,"Rate\n(per cent)","Level","Rate\n(per cent)","Level"]
[null,2004,23.3,765200,23.9,9154600]
[null,2005,22.9,758700,23.7,9182800]
[null,2006,22.2,739200,23.4,9174900]
[null,2007,22.4,753700,23.6,9322900]
[null,2008,22.6,764300,23.5,9351400]
[null,2009,22.6,766800,23.5,9414100]
[null,2010,23,784600,24,9675800]
[null,2011,23.1,794600,24,9719200]
[null,2012,23.2,793900,23.4,9463700]
[null,2013,23.1,790300,22.9,9283100]
[null,2014,22.5,769300,22.8,9277600]
[null,2015,22.3,764000,22.4,9139600]
[null,2016,23.3,799400,22.3,9153200]
[null,2017,22.6,776500,21.8,8966900]
[null,2018,22.6,777600,21.7,8942200]
[null,2019,22.5,772800,21.2,8773900]
[]
[null,"Source: Annual Population Survey, Jan-Dec datasets, ONS"]
[null,"Notes:"]
[null,"1.  Levels and rates cover those aged 16 to 64."]
[null,"2.  Levels rounded to the nearest hundred."]
[null,"3.  Rates are calculated on unrounded figures."]
[null,"4.  See the concepts and definitions section of the publication for more detail on estimates. "]

{"sheet":"Chart 30","index":32,"n_rows":51,"n_cols":10,"rows_kept":51,"cut":false,"hidden":false,"merged":[[0,0,0,1],[45,1,45,5],[26,2,26,3],[26,4,26,5],[26,6,26,7],[2,1,2,8],[47,1,47,4],[48,1,48,4],[49,1,49,4],[50,1,50,7],[26,8,26,9]]}
["Return to index"]
[]
[null,"Chart 30: Economic Inactivity Rate for ages 16 to 64 by Gender, Scotland, 2004 to 2019"]
[]
[]
[]
[]
[]
[]
[]
[]
[]
[]
[]
[]
[]
[]
[]
[]
[]
[]
[]
[]
[]
[]
[]
[null,null,"Scotland - Men",null,"Scotland - Women",null,"UK - Men",null,"UK - Women"]
[null,null,"Rate\n(per cent)","Level","Rate\n(per cent)","Level","Rate\n(per cent)","Level","Rate\n(per cent)","Level"]
[null,2004,17,273200,29.2,492000,16.7,3172900,30.9,5981800]
[null,2005,17.100000000000001,275600,28.5,483200,16.8,3222100,30.5,5960700]
[null,2006,16.399999999999999,265900,27.7,473300,16.600000000000001,3218100,30.1,5956700]
[null,2007,16.5,270000,28.1,483700,16.899999999999999,3298900,30.2,6024000]
[null,2008,16.7,276000,28.3,488300,16.8,3325400,30,6026000]
[null,2009,17.2,284500,27.8,482300,17.100000000000001,3385500,29.8,6028600]
[null,2010,17.7,294500,28.1,490100,17.600000000000001,3513800,30.3,6162000]
[null,2011,17.8,298800,28.2,495800,17.8,3569100,30.1,6150100]
[null,2012,18,301200,28.2,492700,17.3,3474400,29.3,5989300]
[null,2013,18.399999999999999,306600,27.7,483700,17,3416300,28.7,5866800]
[null,2014,17.899999999999999,298200,27,471100,17.3,3485100,28.3,5792600]
[null,2015,18.399999999999999,306800,26.1,457200,16.899999999999999,3433300,27.7,5706400]
[null,2016,18.8,316000,27.5,483500,17,3462200,27.6,5691000]
[null,2017,18.399999999999999,309800,26.5,466700,16.8,3428900,26.7,5538000]
[null,2018,18.2,306700,26.7,471000,16.899999999999999,3457300,26.4,5484800]
[null,2019,18.899999999999999,317000,25.9,455800,16.8,3450600,25.6,5323200]
[]
[null,"Source: Annual Population Survey, Jan-Dec datasets, ONS"]
[null,"Notes:"]
[null,"1.  Levels and rates cover those aged 16 to 64."]
[null,"2.  Levels rounded to the nearest hundred."]
[null,"3.  Rates are calculated on unrounded figures."]
[null,"4.  See the concepts and definitions section of the publication for more detail on estimates. "]

{"sheet":"Chart 31","index":33,"n_rows":49,"n_cols":6,"rows_kept":49,"cut":false,"hidden":false,"merged":[[48,1,48,9],[0,0,0,1],[26,2,26,5],[45,1,45,6],[2,1,2,10],[47,1,47,5]]}
["Return to index"]
[]
[null,"Chart 31: Economic Inactivity Rate for ages 16 to 64 by age, Scotland, 2004 to 2019"]
[]
[]
[]
[]
[]
[]
[]
[]
[]
[]
[]
[]
[]
[]
[]
[]
[]
[]
[]
[]
[]
[]
[]
[null,null,"Inactivity Rate (per cent)"]
[null,null,"16 to 24","25 to 34","35 to 49","50 to 64"]
[null,2004,27.6,16.100000000000001,14.6,36.200000000000003]
[null,2005,26.4,16.100000000000001,14.8,35.299999999999997]
[null,2006,27.4,14.8,13.6,34.299999999999997]
[null,2007,28.6,14.5,13.8,34.1]
[null,2008,29.8,14.7,14.2,33.200000000000003]
[null,2009,31,14.3,14.1,32.6]
[null,2010,31.9,14.4,14,33.1]
[null,2011,30.7,14.4,14.7,33.299999999999997]
[null,2012,33,14.2,14.1,32.9]
[null,2013,33.700000000000003,14.7,14,31.8]
[null,2014,35.700000000000003,14.1,13.1,29.9]
[null,2015,34.1,15.2,13.9,28.5]
[null,2016,36.6,15.2,15.2,28.9]
[null,2017,34.700000000000003,15,15.1,28.1]
[null,2018,36.700000000000003,15.4,13.8,28.1]
[null,2019,36.9,15.1,13.9,27.8]
[]
[null,"Source: Annual Population Survey, Jan-Dec datasets, ONS"]
[null,"Notes:"]
[null,"1.  Rates are calculated on unrounded figures."]
[null,"2.  See the concepts and definitions section of the publication for more detail on estimates. "]

{"sheet":"Chart 32","index":34,"n_rows":36,"n_cols":8,"rows_kept":36,"cut":false,"hidden":false,"merged":[[35,1,35,6],[34,1,34,3],[32,1,32,4],[0,0,0,1],[26,2,26,7],[2,1,2,5],[31,1,31,5]]}
["Return to index"]
[]
[null,"Chart 32: Change in reasons for Inactivity, Scotland, 2009 to 2019"]
[]
[]
[]
[]
[]
[]
[]
[]
[]
[]
[]
[]
[]
[]
[]
[]
[]
[]
[]
[]
[]
[]
[]
[null,null,"Inactivity Level (thousands)"]
[null,null,"Student","Looking after\nFamily/Home","Long-Term\nSick","Temporary\nSick","Retired","Other*"]
[null,2019,197,147,218,17,111,81]
[null,"Change\nsince 2009",26,-15,-4,-1,-25,27]
[]
[null,"* “Other” reasons for inactivity include: “Other”, “No reason given”, and\n“Waiting on the result of a job application”."]
[null,"Source: Annual Population Survey, Jan-Dec datasets, ONS"]
[null,"Notes:"]
[null,"1.  Levels rounded to the nearest thousand."]
[null,"2.  See the concepts and definitions section of the publication for more detail on estimates. "]

{"sheet":"Chart 33","index":35,"n_rows":44,"n_cols":9,"rows_kept":44,"cut":false,"hidden":false,"merged":[[41,1,41,4],[42,1,42,4],[43,1,43,7],[0,0,0,1],[2,1,2,8],[38,1,38,5],[40,1,40,3],[37,1,37,5]]}
["Return to index"]
[]
[null,"Chart 33: Composition of those aged 16 to 64 who were economically inactive, Scotland, 2019"]
[]
[]
[]
[]
[]
[]
[]
[]
[]
[]
[]
[]
[]
[]
[]
[]
[]
[]
[]
[]
[]
[]
[]
[]
[]
[]
[]
[]
[null,null,null,"Total","Student","Looking after Home/Family","Sick/Disabled","Retired","Other*"]
[null,"Men","Levels",317000,96300,21000,118000,46500,35300]
[null,null,"Proportions\n(per cent)",null,30.4,6.6,37.200000000000003,14.7,11.1]
[null,"Women","Levels",455800,101100,126400,116000,64300,48000]
[null,null,"Proportions\n(per cent)",null,22.2,27.7,25.4,14.1,10.5]
[]
[null,"* “Other” reasons for inactivity include: “Other”, “No reason given”, and\n“Waiting on the result of a job application”."]
[null,"Source: Annual Population Survey, Jan-Dec datasets, ONS"]
[null,"Notes:"]
[null,"1.  Levels cover those aged 16 to 64."]
[null,"2.  Levels rounded to the nearest thousand."]
[null,"3.  Proportions are calculated on unrounded figures."]
[null,"4.  See the concepts and definitions section of the publication for more detail on estimates. "]

{"sheet":"Chart 34","index":36,"n_rows":50,"n_cols":4,"rows_kept":50,"cut":false,"hidden":false,"merged":[[48,1,48,4],[49,1,49,8],[26,2,26,3],[0,0,0,1],[2,1,2,14],[45,1,45,5],[47,1,47,3]]}
["Return to index"]
[]
[null,"Chart 34: Proportion of economically inactive people aged 16 to 64 who would like a job by gender, Scotland, 2004 to 2019"]
[]
[]
[]
[]
[]
[]
[]
[]
[]
[]
[]
[]
[]
[]
[]
[]
[]
[]
[]
[]
[]
[]
[]
[null,null,"Proportion of Inactive\nwho would like a job (per cent)"]
[null,null,"Men","Women"]
[null,2004,32.799999999999997,24.4]
[null,2005,31,23.8]
[null,2006,30.3,22.6]
[null,2007,28.4,22.5]
[null,2008,27.6,23]
[null,2009,29.2,23.8]
[null,2010,28,21.8]
[null,2011,28.1,22.7]
[null,2012,29.8,23]
[null,2013,29.7,23.3]
[null,2014,27.7,23.1]
[null,2015,26.4,22.7]
[null,2016,27.2,21.6]
[null,2017,25.8,22.2]
[null,2018,22.5,19.899999999999999]
[null,2019,21.6,19.600000000000001]
[]
[null,"Source: Annual Population Survey, Jan-Dec datasets, ONS"]
[null,"Notes:"]
[null,"1.  Proportions cover those aged 16 to 64."]
[null,"2.  Proportions are calculated on unrounded figures."]
[null,"3.  See the concepts and definitions section of the publication for more detail on estimates. "]

{"sheet":"Chart 35","index":37,"n_rows":51,"n_cols":4,"rows_kept":51,"cut":false,"hidden":false,"merged":[[50,1,50,5],[27,2,27,3],[0,0,0,1],[46,1,46,3],[2,1,2,7],[49,1,49,3],[48,1,48,5]]}
["Return to index"]
[]
[null,"Chart 35: Number of people who have never worked aged 16 and over, Scotland, 2004 to 2019"]
[]
[]
[]
[]
[]
[]
[]
[]
[]
[]
[]
[]
[]
[]
[]
[]
[]
[]
[]
[]
[]
[]
[]
[]
[null,null,"Levels (thousands)"]
[null,null,"All who have never worked\nexcluding 16 to 24 year olds\nin full-time education","All who have never worked"]
[null,2004,102,207]
[null,2005,103,209]
[null,2006,114,221]
[null,2007,131,242]
[null,2008,108,235]
[null,2009,114,246]
[null,2010,120,262]
[null,2011,116,266]
[null,2012,106,269]
[null,2013,128,287]
[null,2014,122,284]
[null,2015,131,294]
[null,2016,152,323]
[null,2017,153,304]
[null,2018,160,320]
[null,2019,149,306]
[]
[null,"Source: Annual Population Survey, Jan-Dec datasets, ONS"]
[null,"Notes:"]
[null,"1.  The number of people who have never worked covers those aged 16 and over who\nare currently unemployed or economically inactive. \n"]
[null,"2.  Levels rounded to the nearest thousand."]
[null,"3.  See the concepts and definitions section of the publication for more detail on estimates. "]